bitfinex-derivatives/quotes_BTCF0:USTF0_20241128
["timestamp","ask_amount","ask_price","bid_price","bid_amount"]
[1732761943066,1.153979,96101.0,96100.0,0.07679676]
[1732761943473,1.153979,96101.0,96100.0,0.05403008]
[1732761943773,0.051988,96084.0,96076.0,0.051992]
[1732761943964,0.3608,96081.0,96076.0,0.051992]
[1732761944166,0.3608,96081.0,96074.0,0.01299231]
[1732761944370,0.051995,96070.0,96069.0,0.20779574]
[1732761944569,0.051995,96070.0,96050.0,0.0325]
[1732761944570,0.3608,96075.0,96050.0,0.0325]
[1732761944772,0.3608,96064.0,96050.0,0.0325]
[1732761945071,0.15944,96063.0,96062.0,0.49742962]
[1732761945269,0.211439,96063.0,96062.0,0.49742962]
[1732761946169,0.052001,96060.0,96052.0,0.43665033]
[1732761946375,0.052002,96059.0,96053.0,0.03523381]
[1732761946568,0.052002,96059.0,96054.0,0.03523381]
[1732761946769,0.052002,96059.0,96055.0,0.04910492]
[1732761947070,0.052002,96059.0,96056.0,0.01387111]
[1732761947270,0.052002,96059.0,96057.0,0.01387111]
[1732761947468,0.052002,96059.0,96058.0,0.01387111]
[1732761948668,0.054002,96059.0,96058.0,0.01387111]
[1732761949177,0.054002,96059.0,96040.0,0.00156183]
[1732761949178,0.002,96059.0,96040.0,0.00156183]
[1732761949369,0.412807,96049.0,96048.0,0.01374883]
[1732761952077,0.413807,96049.0,96048.0,0.01374883]
[1732761952275,0.414807,96049.0,96048.0,0.01374883]
[1732761952474,0.414807,96049.0,96048.0,0.01360747]
[1732761955581,0.3628,96049.0,96047.0,0.052007]
[1732761955771,0.3628,96049.0,96048.0,0.01375379]
[1732761955972,0.3628,96049.0,96048.0,0.01375378]
[1732761956480,0.002,96049.0,96048.0,0.04051622]
[1732761957176,0.002,96049.0,96048.0,0.01375378]
[1732761958770,0.001,96049.0,96048.0,0.01375378]
[1732761958974,0.002,96049.0,96048.0,0.01375378]
[1732761959784,0.002,96049.0,96048.0,0.33993324]
[1732761959973,0.3608,96053.0,96048.0,0.3529419]
[1732761960176,0.412805,96053.0,96052.0,0.052005]
[1732761960376,0.412805,96053.0,96052.0,0.02682812]
[1732761960678,0.412805,96053.0,96052.0,0.01381946]
[1732761961280,0.414805,96053.0,96052.0,0.01381946]
[1732761962683,0.414805,96053.0,96052.0,0.03678064]
[1732761963086,0.414805,96053.0,96052.0,0.01381946]
[1732761963282,0.3628,96053.0,96052.0,0.03678601]
[1732761963675,0.002,96053.0,96052.0,0.41059444]
[1732761964081,0.002,96053.0,96052.0,0.3608]
[1732761964082,0.001,96053.0,96052.0,0.3608]
[1732761964293,0.002,96053.0,96052.0,0.3628]
[1732761964983,0.002,96053.0,96052.0,0.67512]
[1732761965182,0.002,96053.0,96052.0,0.37580749]
[1732761965385,0.002,96053.0,96052.0,0.72554021]
[1732761966286,0.002,96053.0,96052.0,0.41322021]
[1732761967290,0.002,96053.0,96052.0,0.45210283]
[1732761968280,0.15904,96067.0,96062.0,0.051999]
[1732761968499,0.3608,96068.0,96066.0,0.051998]
[1732761968678,0.3608,96068.0,96067.0,0.02302321]
[1732761968881,0.3608,96068.0,96067.0,0.03741272]
[1732761969281,0.3608,96068.0,96067.0,0.0678015]
[1732761971394,0.3608,96068.0,96067.0,0.0688015]
[1732761971585,0.3608,96068.0,96067.0,0.0698015]
[1732761972386,0.3608,96068.0,96067.0,0.002]
[1732761972584,0.3608,96068.0,96067.0,0.0418903]
[1732761972793,0.3608,96068.0,96067.0,0.07257515]
[1732761973494,0.4113801,96068.0,96067.0,0.0418903]
[1732761975298,0.4113801,96068.0,96067.0,0.01734242]
[1732761975794,0.4113801,96068.0,96067.0,0.04069621]
[1732761976300,0.3608,96068.0,96067.0,0.04069621]
[1732761978898,0.41138226,96068.0,96067.0,0.04062238]
[1732761979084,0.41138226,96068.0,96067.0,0.002]
[1732761980189,0.41138226,96068.0,96067.0,0.01710466]
[1732761980795,0.57042226,96068.0,96067.0,0.01710466]
[1732761981913,0.41138226,96068.0,96067.0,0.01710466]
[1732761982438,0.57042226,96068.0,96067.0,0.04109246]
[1732761982606,0.41138226,96068.0,96067.0,0.04109246]
[1732761982810,0.51984,96068.0,96067.0,0.0170357]
[1732761983307,0.51984,96068.0,96067.0,0.0410926]
[1732761984306,0.51984,96068.0,96067.0,0.04092529]
[1732761986399,0.51984,96068.0,96067.0,0.01697126]
[1732761986990,0.57042648,96068.0,96067.0,0.002]
[1732761987202,0.052007,96048.0,96047.0,0.00156168]
[1732761987394,0.571847,96048.0,96047.0,0.07111577]
[1732761988504,0.58563286,96048.0,96047.0,0.07211577]
[1732761989007,0.58663286,96048.0,96047.0,0.07411577]
[1732761989504,0.58663286,96048.0,96047.0,0.04387486]
[1732761990396,0.94743286,96048.0,96047.0,0.04387486]
[1732761990798,0.94743286,96048.0,96047.0,0.01968213]
[1732761991106,0.94747286,96048.0,96047.0,0.01968213]
[1732761991303,0.94747286,96048.0,96047.0,0.00456168]
[1732761991504,0.94747286,96048.0,96047.0,0.01929276]
[1732761991695,0.94747286,96048.0,96047.0,0.00456168]
[1732761991895,0.94647286,96048.0,96047.0,0.00256168]
[1732761992195,0.94747286,96048.0,96047.0,0.00256168]
[1732761992396,0.94747286,96048.0,96047.0,0.00156168]
[1732761995103,0.052009,96045.0,96034.0,0.31158551]
[1732761995502,0.364369,96045.0,96034.0,0.31158551]
[1732761995801,0.052009,96045.0,96034.0,0.31158551]
[1732761996006,0.210729,96045.0,96034.0,0.31158551]
[1732761996603,0.211729,96045.0,96034.0,0.31158551]
[1732761997512,0.212729,96045.0,96044.0,0.0010563]
[1732761998410,0.211729,96045.0,96044.0,0.0010563]
[1732762000003,0.053009,96045.0,96044.0,0.0010563]
[1732762000307,0.217729,96045.0,96044.0,0.0010563]
[1732762000808,0.222729,96045.0,96044.0,5.63e-05]
[1732762002907,0.3772331,96045.0,96044.0,5.63e-05]
[1732762003098,0.222729,96045.0,96044.0,5.63e-05]
[1732762003303,0.3772331,96045.0,96044.0,5.63e-05]
[1732762003513,0.222729,96045.0,96044.0,5.63e-05]
[1732762004107,0.05202,96025.0,96021.0,0.0946]
[1732762004304,0.05202,96025.0,96022.0,0.02715169]
[1732762004505,0.05202,96025.0,96023.0,0.02715169]
[1732762004707,0.05202,96025.0,96024.0,0.01413891]
[1732762005911,0.05302,96025.0,96024.0,0.01413891]
[1732762006412,0.05302,96025.0,96024.0,0.0139978]
[1732762006602,0.05202,96025.0,96024.0,0.0139978]
[1732762007217,0.052021,96023.0,96021.0,0.0956]
[1732762007405,0.052021,96023.0,96022.0,0.02701]
[1732762007606,0.51952,96027.0,96026.0,0.052019]
[1732762007902,0.51952,96027.0,96026.0,0.06600897]
[1732762008108,0.09269333,96031.0,96030.0,0.052017]
[1732762008300,0.15605109,96045.0,96043.0,0.05201]
[1732762008505,0.15605109,96045.0,96044.0,0.0307]
[1732762008717,0.16921163,96045.0,96044.0,0.0307]
[1732762009314,0.16921163,96045.0,96044.0,0.04493483]
[1732762009707,0.17721163,96045.0,96044.0,0.04493483]
[1732762010408,0.16505109,96045.0,96044.0,0.59246535]
[1732762010611,0.16505109,96045.0,96044.0,0.40573483]
[1732762011026,0.16348888,96045.0,96044.0,0.40573483]
[1732762011207,0.15748888,96045.0,96044.0,0.40673483]
[1732762011406,0.15748888,96045.0,96044.0,0.46963483]
[1732762011917,0.003,96045.0,96044.0,0.46963483]
[1732762012113,0.001,96045.0,96044.0,0.52064483]
[1732762012607,0.0129074,96048.0,96047.0,0.052008]
[1732762012805,0.052006,96051.0,96047.0,0.052008]
[1732762013008,0.15872,96053.0,96048.0,0.01450654]
[1732762013212,0.052007,96050.0,96049.0,0.06651354]
[1732762013609,0.052007,96050.0,96049.0,0.0665172]
[1732762015113,0.054007,96050.0,96049.0,0.0665172]
[1732762015604,0.002,96050.0,96049.0,0.0665172]
[1732762015809,0.003,96050.0,96049.0,0.0665172]
[1732762017115,0.004,96050.0,96049.0,0.0665172]
[1732762017510,0.004,96050.0,96049.0,0.10262217]
[1732762017915,0.003,96050.0,96049.0,0.10262217]
[1732762018107,0.213726,96050.0,96049.0,0.02751885]
[1732762018416,0.213726,96050.0,96049.0,0.0145102]
[1732762018613,0.211726,96050.0,96049.0,0.0145102]
[1732762018817,0.052009,96046.0,96041.0,0.052011]
[1732762019013,0.3608,96045.0,96042.0,0.02713224]
[1732762019219,0.3608,96045.0,96043.0,0.06613386]
[1732762019423,0.3608,96045.0,96043.0,0.05201]
[1732762019718,0.004,96050.0,96049.0,0.052007]
[1732762019914,0.003,96050.0,96049.0,0.06729696]
[1732762020109,0.15872,96051.0,96049.0,0.06729696]
[1732762020318,0.15872,96051.0,96050.0,0.01428996]
[1732762020612,0.210726,96051.0,96050.0,4.7e-07]
[1732762020805,0.052017,96031.0,96030.0,0.31136043]
[1732762021010,0.052017,96031.0,96029.0,0.0015618]
[1732762021720,0.15872,96036.0,96032.0,0.052016]
[1732762021914,0.15872,96036.0,96029.0,0.0015618]
[1732762021915,0.15872,96036.0,96034.0,0.18684629]
[1732762023915,0.15872,96036.0,96035.0,0.18684245]
[1732762024123,0.15872,96036.0,96034.0,0.37368874]
[1732762024513,0.15872,96036.0,96035.0,0.18684245]
[1732762024716,0.15972,96036.0,96034.0,0.37368874]
[1732762025019,0.16072,96036.0,96034.0,0.37368874]
[1732762025518,0.16072,96036.0,96035.0,0.18684245]
[1732762025717,0.16072,96036.0,96034.0,0.18684629]
[1732762026220,0.15972,96036.0,96034.0,0.18684629]
[1732762026625,0.16072,96036.0,96034.0,0.18684629]
[1732762026917,0.16072,96036.0,96034.0,0.23886129]
[1732762027224,0.16072,96036.0,96034.0,0.052015]
[1732762027520,0.15972,96036.0,96034.0,0.052015]
[1732762027915,0.001,96036.0,96034.0,0.052015]
[1732762028217,0.001,96036.0,96035.0,0.0309]
[1732762029120,0.3134,96036.0,96033.0,0.3608]
[1732762029421,0.052017,96030.0,96029.0,0.0015618]
[1732762030620,0.3608,96034.0,96029.0,0.0015618]
[1732762030826,0.1584,96033.0,96029.0,0.0015618]
[1732762031126,0.002,96030.0,96029.0,0.0015618]
[1732762032020,0.052017,96031.0,96029.0,0.0015618]
[1732762032227,0.31252486,96030.0,96000.0,0.1]
[1732762032529,0.052028,96009.0,96003.0,0.052032]
[1732762032729,0.210428,96009.0,96003.0,0.052032]
[1732762033225,0.210428,96009.0,96007.0,0.052029]
[1732762033432,0.1584,96009.0,96007.0,0.052029]
[1732762033619,0.1584,96009.0,96008.0,0.38670997]
[1732762034026,0.052026,96015.0,96008.0,0.02610196]
[1732762034223,0.1584,96014.0,96012.0,0.052027]
[1732762034422,0.3608,96023.0,96018.0,0.052023]
[1732762034621,0.00156279,96029.0,96019.0,0.01301258]
[1732762034830,0.00156279,96029.0,96027.0,0.052018]
[1732762035325,0.00156279,96029.0,96028.0,0.0313]
[1732762035926,0.00156279,96029.0,96028.0,0.04431184]
[1732762036232,0.15434365,96046.0,96038.0,0.052013]
[1732762036532,0.15434365,96046.0,96038.0,0.06502331]
[1732762036727,0.15434365,96046.0,96038.0,0.07816701]
[1732762036930,0.15434365,96046.0,96038.0,0.07816652]
[1732762037121,0.15434365,96046.0,96045.0,0.052009]
[1732762037324,0.15434365,96046.0,96045.0,0.06501931]
[1732762039635,0.15534365,96046.0,96045.0,0.06501931]
[1732762040037,0.001,96046.0,96045.0,0.06501931]
[1732762040433,0.003,96046.0,96045.0,0.06501931]
[1732762041530,0.003,96046.0,96045.0,0.07805153]
[1732762043330,0.003,96046.0,96045.0,0.06501931]
[1732762043543,0.003,96046.0,96045.0,0.06501782]
[1732762044032,8.776e-05,96050.0,96049.0,0.052007]
[1732762044235,8.776e-05,96050.0,96049.0,0.06501582]
[1732762046036,0.00308776,96050.0,96049.0,0.06501582]
[1732762046428,0.2818981,96061.0,96049.0,0.01300882]
[1732762046629,0.1234981,96061.0,96060.0,0.052001]
[1732762047532,0.1234981,96061.0,96060.0,0.06500803]
[1732762047838,0.02081397,96085.0,96060.0,0.06500803]
[1732762047839,0.1584,96082.0,96060.0,0.42580762]
[1732762048028,0.1584,96082.0,96071.0,0.412795]
[1732762048223,0.01271406,96083.0,96071.0,0.42580162]
[1732762048532,0.1584,96082.0,96071.0,0.42580162]
[1732762048734,0.00011789,96080.0,96071.0,0.42580162]
[1732762049134,0.16030388,96072.0,96071.0,0.42580162]
[1732762050029,0.16030388,96072.0,96071.0,0.42579937]
[1732762050232,0.015,96072.0,96071.0,0.412795]
[1732762051436,0.01,96072.0,96071.0,0.412795]
[1732762051937,0.001,96072.0,96071.0,0.412795]
[1732762062134,0.001,96072.0,96071.0,0.3608]
[1732762062541,0.3618,96072.0,96068.0,0.051996]
[1732762062746,0.3618,96072.0,96061.0,0.052]
[1732762063049,0.051997,96068.0,96066.0,0.051997]
[1732762063346,0.15804,96069.0,96068.0,0.051997]
[1732762063933,0.15804,96069.0,96068.0,0.053997]
[1732762064139,0.15804,96069.0,96068.0,0.002]
[1732762064934,0.15804,96069.0,96060.0,0.3608]
[1732762064935,0.052,96061.0,96060.0,0.3608]
[1732762066842,0.053,96061.0,96060.0,0.3608]
[1732762067844,0.001,96061.0,96060.0,0.3608]
[1732762068039,0.004,96061.0,96060.0,0.3608]
[1732762068549,0.004,96061.0,96060.0,0.3935]
[1732762068846,0.003,96061.0,96060.0,0.4266]
[1732762069142,0.005,96061.0,96060.0,0.7874]
[1732762069347,0.18518795,96072.0,96071.0,0.051995]
[1732762069544,0.18518795,96072.0,96071.0,0.412795]
[1732762070650,0.15432314,96079.0,96078.0,0.051991]
[1732762070951,0.051992,96076.0,96073.0,0.051993]
[1732762071540,0.15432314,96079.0,96073.0,0.051993]
[1732762071742,0.051993,96075.0,96073.0,0.051993]
[1732762071940,0.052994,96072.0,96071.0,0.3608]
[1732762072454,0.052994,96072.0,96060.0,0.42808]
[1732762072650,0.001,96072.0,96069.0,0.051996]
[1732762072835,0.051995,96071.0,96069.0,0.051996]
[1732762074051,0.051995,96071.0,96069.0,0.053996]
[1732762074545,0.051995,96071.0,96069.0,0.002]
[1732762075139,0.052,96062.0,96060.0,0.3638]
[1732762075438,0.00868223,96061.0,96060.0,0.3638]
[1732762076149,0.00868223,96061.0,96060.0,0.3608]
[1732762076357,0.00868223,96061.0,96060.0,0.3638]
[1732762077148,0.00864709,96061.0,96060.0,0.3618]
[1732762078344,0.00964709,96061.0,96060.0,0.3618]
[1732762079846,0.00964709,96061.0,96060.0,0.3608]
[1732762080353,0.00957963,96061.0,96060.0,0.3608]
[1732762080553,0.01157963,96061.0,96060.0,0.3608]
[1732762080951,0.01157963,96061.0,96060.0,0.412801]
[1732762081452,0.17100239,96075.0,96074.0,0.051993]
[1732762082257,0.00011789,96080.0,96068.0,0.3608]
[1732762082551,0.00011789,96080.0,96079.0,0.412791]
[1732762084451,0.00411789,96080.0,96079.0,0.412791]
[1732762085156,0.01111789,96080.0,96079.0,0.413791]
[1732762085742,0.00711789,96080.0,96079.0,0.412791]
[1732762088548,0.15772,96096.0,96095.0,0.051982]
[1732762088852,0.01250971,96098.0,96097.0,0.051981]
[1732762089158,0.3608,96106.0,96097.0,0.051981]
[1732762089352,0.15772,96107.0,96097.0,0.051981]
[1732762089552,9.184e-05,96100.0,96098.0,0.00011834]
[1732762090649,0.01412661,96099.0,96098.0,0.00011834]
[1732762091456,0.02312661,96099.0,96098.0,0.00111834]
[1732762092258,0.03112661,96099.0,96098.0,0.00111834]
[1732762093257,0.03112661,96099.0,96098.0,0.00211834]
[1732762094857,0.03112661,96099.0,96098.0,0.03401834]
[1732762098559,0.02956493,96099.0,96098.0,0.03401834]
[1732762101659,0.017,96099.0,96098.0,0.03401834]
[1732762104364,0.017,96099.0,96098.0,0.03301834]
[1732762104564,0.017,96099.0,96098.0,0.03401834]
[1732762105669,0.02959783,96099.0,96098.0,0.03401834]
[1732762105862,0.017,96099.0,96098.0,0.03401834]
[1732762113665,0.017,96099.0,96098.0,0.04648249]
[1732762115868,9.184e-05,96100.0,96098.0,0.20416249]
[1732762116065,0.15452222,96116.0,96098.0,0.20416249]
[1732762116066,0.12379782,96117.0,96115.0,0.051971]
[1732762116266,0.12379782,96117.0,96115.0,0.412771]
[1732762117674,0.12379782,96117.0,96116.0,0.01332643]
[1732762117878,0.13279782,96117.0,96116.0,0.01332643]
[1732762118586,0.007,96117.0,96116.0,0.06529743]
[1732762118771,0.05754879,96117.0,96116.0,0.051971]
[1732762119280,0.05754879,96117.0,96116.0,0.052971]
[1732762119672,0.05754879,96117.0,96116.0,0.0659704]
[1732762119673,0.06254879,96117.0,96116.0,0.0659704]
[1732762119879,0.06254879,96117.0,96116.0,0.052971]
[1732762120179,0.06254879,96117.0,96116.0,0.001]
[1732762120378,0.28250879,96117.0,96116.0,0.001]
[1732762120683,1.38250879,96117.0,96116.0,0.001]
[1732762121279,0.28250879,96117.0,96116.0,0.001]
[1732762123771,0.23196,96117.0,96116.0,0.001]
[1732762124582,0.0746,96117.0,96116.0,0.001]
[1732762124769,0.23196,96117.0,96116.0,0.001]
[1732762127379,0.16936,96117.0,96116.0,0.001]
[1732762127569,0.012,96117.0,96116.0,0.01464998]
[1732762133291,0.012,96117.0,96116.0,0.01510727]
[1732762133881,0.06255188,96117.0,96116.0,0.001]
[1732762134785,0.05555188,96117.0,96114.0,0.24920231]
[1732762134984,0.05055188,96116.0,96115.0,0.01414831]
[1732762135583,0.06097,96117.0,96114.0,0.24920231]
[1732762135584,0.29520479,96117.0,96114.0,0.24920231]
[1732762136090,0.29420479,96117.0,96115.0,0.01440806]
[1732762136389,0.29120479,96117.0,96116.0,0.01440806]
[1732762136591,0.29120479,96117.0,96116.0,0.01440805]
[1732762136985,0.29120479,96117.0,96116.0,0.01442896]
[1732762137397,0.29120479,96117.0,96114.0,0.24920231]
[1732762137398,0.31212,96116.0,96114.0,0.01220002]
[1732762137691,0.051975,96108.0,96098.0,0.00011834]
[1732762137886,0.41278,96099.0,96098.0,0.00011834]
[1732762138091,0.46334378,96099.0,96098.0,0.00011834]
[1732762139593,0.46334332,96099.0,96098.0,0.00011834]
[1732762140496,0.46534332,96099.0,96098.0,0.00011834]
[1732762140994,0.47826778,96099.0,96098.0,0.00011834]
[1732762141491,0.47826778,96099.0,96098.0,0.00511834]
[1732762141792,0.42770446,96099.0,96098.0,0.00511834]
[1732762142995,0.42570446,96099.0,96098.0,0.00011834]
[1732762143296,0.43070446,96099.0,96098.0,0.00011834]
[1732762143892,0.79150446,96099.0,96098.0,0.00011834]
[1732762144195,1.10366446,96099.0,96098.0,0.00011834]
[1732762144785,1.34968446,96099.0,96084.0,0.031]
[1732762145096,0.412787,96085.0,96084.0,0.031]
[1732762145297,0.570187,96085.0,96084.0,0.031]
[1732762145504,0.5182,96085.0,96084.0,0.031]
[1732762145698,0.1574,96085.0,96084.0,0.031]
[1732762145901,0.1074,96085.0,96084.0,0.03110915]
[1732762146101,0.1074,96085.0,96084.0,0.09912972]
[1732762146302,0.07489032,96085.0,96084.0,0.10238068]
[1732762146797,0.07489032,96085.0,96084.0,0.09912972]
[1732762146995,0.08869693,96085.0,96084.0,0.09912985]
[1732762147499,0.01380661,96085.0,96084.0,0.06842985]
[1732762147888,0.01380661,96085.0,96084.0,0.05542578]
[1732762149003,0.01380661,96085.0,96084.0,0.0556507]
[1732762149487,0.01380661,96085.0,96084.0,0.03110915]
[1732762150097,0.001,96085.0,96084.0,0.03110915]
[1732762150594,0.001,96085.0,96084.0,0.08669645]
[1732762150896,0.001,96085.0,96084.0,0.07044149]
[1732762151106,0.15708,96094.0,96092.0,0.051984]
[1732762151293,0.051978,96103.0,96094.0,0.051982]
[1732762151701,0.66205779,96099.0,96094.0,0.051982]
[1732762152199,0.01292388,96098.0,96094.0,0.051982]
[1732762152789,0.06490488,96098.0,96094.0,0.09102532]
[1732762152988,0.051981,96098.0,96094.0,0.06699866]
[1732762153202,0.051981,96098.0,96095.0,0.01501666]
[1732762153398,0.051981,96098.0,96096.0,0.01501666]
[1732762153598,0.051981,96098.0,96097.0,0.01501666]
[1732762155789,0.55145999,96099.0,96097.0,0.06699666]
[1732762156005,0.64397435,96099.0,96098.0,0.01501666]
[1732762156894,0.64497435,96099.0,96098.0,0.01501666]
[1732762158401,0.64597435,96099.0,96098.0,0.01501666]
[1732762159092,0.55245999,96099.0,96098.0,0.01501666]
[1732762159300,0.55345999,96099.0,96098.0,0.01501666]
[1732762160704,0.55345999,96099.0,96098.0,0.03960859]
[1732762162095,0.55345999,96099.0,96098.0,0.0400294]
[1732762162902,0.002,96099.0,96098.0,0.0400294]
[1732762163103,0.09264267,96109.0,96098.0,0.12753532]
[1732762163301,0.15708,96108.0,96099.0,0.09683532]
[1732762163599,0.15708,96108.0,96107.0,0.051975]
[1732762163806,0.15708,96108.0,96107.0,0.0920044]
[1732762164008,0.00156116,96111.0,96107.0,0.0400294]
[1732762164199,0.15708,96110.0,96109.0,0.051974]
[1732762164400,0.15708,96110.0,96109.0,0.0920034]
[1732762165004,0.15708,96110.0,96109.0,0.051974]
[1732762165203,0.00156116,96111.0,96109.0,0.09204442]
[1732762165394,0.09264267,96112.0,96111.0,0.051973]
[1732762165596,0.09264267,96112.0,96111.0,0.13911888]
[1732762166109,0.04264267,96112.0,96111.0,0.13911888]
[1732762166295,8.161e-05,96120.0,96115.0,0.051971]
[1732762166504,0.00156059,96140.0,96136.0,0.05196]
[1732762166700,0.00156059,96140.0,96136.0,0.45283042]
[1732762167007,0.00156059,96140.0,96136.0,0.46907655]
[1732762167201,0.00156059,96140.0,96136.0,0.45283042]
[1732762167507,7.534e-05,96138.0,96136.0,0.45283042]
[1732762167705,7.534e-05,96138.0,96136.0,0.46907655]
[1732762167893,7.534e-05,96138.0,96137.0,0.08781655]
[1732762168695,7.534e-05,96138.0,96137.0,0.08792567]
[1732762168900,7.534e-05,96138.0,96137.0,0.05622587]
[1732762169103,7.534e-05,96138.0,96137.0,0.07241577]
[1732762169509,7.534e-05,96138.0,96137.0,0.08783486]
[1732762169808,0.00107534,96138.0,96137.0,0.11843486]
[1732762170203,0.00207534,96138.0,96137.0,0.11843486]
[1732762170602,0.00207534,96138.0,96137.0,0.01866813]
[1732762170898,0.22001534,96138.0,96137.0,0.01541909]
[1732762171204,1.63205534,96138.0,96137.0,0.01541909]
[1732762171402,1.63205534,96138.0,96127.0,0.18614597]
[1732762171600,0.051964,96129.0,96128.0,0.01551143]
[1732762171900,0.051964,96129.0,96127.0,0.18614597]
[1732762172712,0.051964,96129.0,96127.0,0.18814597]
[1732762172902,0.051964,96129.0,96128.0,0.004]
[1732762173311,0.051964,96129.0,96127.0,0.18814597]
[1732762173608,0.051964,96129.0,96127.0,0.19214597]
[1732762174205,0.051964,96129.0,96128.0,0.002]
[1732762174800,0.06451059,96129.0,96128.0,0.002]
[1732762175410,0.42531059,96129.0,96128.0,0.002]
[1732762176408,0.42531059,96129.0,96127.0,0.006]
[1732762176409,0.42531059,96129.0,96127.0,0.001]
[1732762176912,0.05197,96117.0,96096.0,0.18614597]
[1732762177105,0.05198,96099.0,96097.0,0.04455951]
[1732762177306,0.05198,96099.0,96098.0,0.01913825]
[1732762177610,0.05198,96099.0,96095.0,0.051982]
[1732762177914,0.05198,96099.0,96096.0,0.02454001]
[1732762178213,0.051982,96095.0,96090.0,0.051985]
[1732762178511,0.051982,96095.0,96084.0,0.00010915]
[1732762178512,0.051982,96095.0,96091.0,0.02457413]
[1732762178717,0.051982,96095.0,96092.0,0.07655713]
[1732762178906,0.051982,96095.0,96093.0,0.01612233]
[1732762179119,0.051982,96095.0,96094.0,0.01612233]
[1732762179305,0.051982,96095.0,96093.0,0.051983]
[1732762179517,0.051982,96095.0,96094.0,0.04203711]
[1732762180909,0.10391222,96100.0,96094.0,0.04303711]
[1732762181103,0.051981,96097.0,96095.0,0.04203711]
[1732762181305,0.051981,96097.0,96096.0,0.04203711]
[1732762183515,0.051981,96097.0,96096.0,0.01612247]
[1732762183718,0.412781,96097.0,96096.0,0.01612247]
[1732762186120,0.051982,96096.0,96093.0,0.051983]
[1732762186413,0.051982,96096.0,96094.0,0.01577836]
[1732762186614,0.051982,96096.0,96095.0,0.01577836]
[1732762188911,0.051982,96094.0,96093.0,0.002]
[1732762189116,0.208782,96094.0,96093.0,0.002]
[1732762189817,0.051987,96085.0,96084.0,0.00010915]
[1732762190008,0.3608,96089.0,96084.0,0.00010915]
[1732762190214,0.3608,96089.0,96088.0,0.051986]
[1732762191221,0.3618,96089.0,96088.0,0.051986]
[1732762191714,0.3608,96089.0,96088.0,0.051986]
[1732762191919,0.3608,96089.0,96088.0,0.055986]
[1732762192115,0.1568,96093.0,96091.0,0.051984]
[1732762192316,0.3608,96098.0,96091.0,0.051984]
[1732762192317,0.051981,96097.0,96092.0,0.04524029]
[1732762192524,0.1568,96096.0,96093.0,0.01530166]
[1732762192723,0.1568,96096.0,96094.0,0.01530166]
[1732762193024,0.1568,96096.0,96092.0,0.03]
[1732762193227,0.051982,96095.0,96093.0,0.01530164]
[1732762193514,0.051982,96095.0,96094.0,0.01542585]
[1732762194516,0.051982,96095.0,96093.0,0.001]
[1732762194924,0.051982,96095.0,96094.0,0.001]
[1732762195114,0.051982,96095.0,96094.0,0.01612321]
[1732762196228,0.051982,96095.0,96094.0,0.001]
[1732762196714,0.364182,96095.0,96094.0,0.001]
[1732762197422,0.051982,96095.0,96094.0,0.001]
[1732762200425,0.208782,96095.0,96094.0,0.001]
[1732762202835,0.208782,96095.0,96094.0,0.01566023]
[1732762203145,0.208782,96095.0,96094.0,0.01466023]
[1732762204736,0.051987,96086.0,96084.0,0.00010915]
[1732762205039,0.051987,96086.0,96085.0,0.01466149]
[1732762205244,0.051987,96086.0,96084.0,0.00010915]
[1732762205437,0.051987,96086.0,96085.0,0.01467089]
[1732762205635,0.051987,96086.0,96084.0,0.05209715]
[1732762205845,0.051987,96086.0,96085.0,0.01478174]
[1732762206044,0.051987,96086.0,96085.0,0.03843253]
[1732762206949,0.3608,96089.0,96085.0,0.03843253]
[1732762207145,0.3608,96089.0,96087.0,0.051986]
[1732762207452,0.1568,96095.0,96088.0,0.03843253]
[1732762207642,0.1568,96095.0,96094.0,0.051982]
[1732762207948,0.1568,96095.0,96094.0,0.03843253]
[1732762208447,0.051982,96096.0,96094.0,0.03843253]
[1732762208636,0.215582,96096.0,96095.0,0.03843253]
[1732762208950,0.215582,96096.0,96095.0,0.01478174]
[1732762212246,0.215582,96096.0,96095.0,0.0147872]
[1732762212247,0.1636,96096.0,96095.0,0.0147872]
[1732762212438,0.051981,96096.0,96095.0,0.0147872]
[1732762212641,0.051982,96095.0,96092.0,0.18702829]
[1732762213041,0.051982,96095.0,96093.0,0.01467416]
[1732762213848,0.051983,96093.0,96092.0,0.18702829]
[1732762214043,0.051983,96093.0,96092.0,0.18902829]
[1732762214242,0.051983,96093.0,96092.0,0.20362431]
[1732762214549,0.051983,96093.0,96092.0,0.01659602]
[1732762214753,0.051983,96093.0,96092.0,0.01459602]
[1732762214940,0.364183,96093.0,96092.0,0.01459602]
[1732762215146,0.41474851,96093.0,96092.0,0.01459602]
[1732762215346,0.41474851,96093.0,96091.0,0.1870574]
[1732762215554,0.08326551,96092.0,96091.0,0.1870574]
[1732762217254,0.0357,96092.0,96091.0,0.20148061]
[1732762218155,0.0357,96092.0,96091.0,0.01442321]
[1732762218354,0.051987,96085.0,96084.0,0.18714322]
[1732762218547,0.576387,96085.0,96084.0,0.20150829]
[1732762219646,0.576387,96085.0,96084.0,0.18714322]
[1732762219848,0.576387,96085.0,96084.0,0.20130798]
[1732762220053,0.576387,96085.0,96084.0,0.20230798]
[1732762220550,0.576387,96085.0,96084.0,0.18814322]
[1732762221650,0.576387,96085.0,96084.0,0.20238165]
[1732762223348,0.576387,96085.0,96084.0,0.01534758]
[1732762223754,0.58901209,96085.0,96084.0,0.01534758]
[1732762224147,0.58901209,96085.0,96084.0,0.00110915]
[1732762224448,0.90138176,96085.0,96084.0,0.00110915]
[1732762226142,0.58914176,96085.0,96084.0,0.00110915]
[1732762229354,0.74371152,96085.0,96084.0,0.00110915]
[1732762230059,0.58914176,96085.0,96084.0,0.00110915]
[1732762230556,0.55796398,96085.0,96084.0,0.00110915]
[1732762230756,0.52452967,96085.0,96084.0,0.03210915]
[1732762230961,0.21571667,96085.0,96084.0,0.04613701]
[1732762231351,0.00012967,96085.0,96084.0,0.29545856]
[1732762231555,0.05469943,96086.0,96084.0,0.06858056]
[1732762231761,0.05469943,96086.0,96085.0,0.69842374]
[1732762231962,0.05469943,96086.0,96085.0,0.44925841]
[1732762232157,0.00469943,96086.0,96085.0,1.01065624]
[1732762232354,0.12365739,96090.0,96089.0,0.051985]
[1732762232548,0.00012167,96094.0,96093.0,0.051983]